bitfinex/quotes_SOLUSD_20250625
["timestamp","ask_amount","ask_price","bid_price","bid_amount"]
[1750849825766,18.64964886,145.8,145.76,50.42]
[1750849825961,5.5348823,145.77,145.76,50.42]
[1750849827910,31.5348823,145.81,145.76,55.9548823]
[1750849828063,5.5348823,145.8,145.76,55.9548823]
[1750849828267,5.5348823,145.8,145.76,50.42]
[1750849830105,5.5348823,145.8,145.76,6.02]
[1750849830391,5.5348823,145.8,145.76,11.5548823]
[1750849830594,31.5348823,145.81,145.77,5.5348823]
[1750849830796,26.0,145.81,145.78,5.5348823]
[1750849832175,24.18453116,145.83,145.78,5.5348823]
[1750849834106,24.18453116,145.83,145.76,122.74]
[1750849834308,5.5348823,145.82,145.78,5.5348823]
[1750849835128,24.18453116,145.83,145.78,5.5348823]
[1750849835682,18.64964886,145.83,145.79,5.5348823]
[1750849836593,26.0,145.84,145.81,5.5348823]
[1750849836972,26.0,145.84,145.82,5.5348823]
[1750849837393,26.0,145.84,145.81,5.5348823]
[1750849840901,26.0,145.85,145.83,5.5348823]
[1750849841086,26.0,145.85,145.84,5.5348823]
[1750849841294,18.64964886,145.88,145.84,5.5348823]
[1750849841501,44.64964886,145.88,145.84,5.5348823]
[1750849842408,50.18453116,145.88,145.84,5.5348823]
[1750849844503,18.64964886,145.9,145.86,5.5348823]
[1750849844879,18.64964886,145.9,145.87,5.5348823]
[1750849849911,18.64964886,145.9,145.83,94.72]
[1750849849912,24.18453116,145.9,145.86,5.5348823]
[1750849850089,29.29306259,145.9,145.86,5.5348823]
[1750849851016,5.5348823,145.88,145.83,94.72]
[1750849851220,5.5348823,145.88,145.83,11.5548823]
[1750849851509,5.5348823,145.88,145.84,5.5348823]
[1750849853797,5.5348823,145.89,145.85,5.5348823]
[1750849855709,5.5348823,145.89,145.84,5.5348823]
[1750849857907,5.5348823,145.88,145.83,6.02]
[1750849858215,5.5348823,145.86,145.83,6.02]
[1750849858413,31.5348823,145.87,145.83,6.02]
[1750849859818,5.5348823,145.86,145.83,6.02]
[1750849861404,31.5348823,145.87,145.83,6.02]
[1750849862221,31.5348823,145.87,145.83,11.5548823]
[1750849862938,10.64341373,145.89,145.85,5.5348823]
[1750849863227,5.5348823,145.89,145.85,5.5348823]
[1750849863400,10.64341373,145.89,145.85,5.5348823]
[1750849863720,10.64341373,145.89,145.84,5.5348823]
[1750849864725,5.10853143,145.89,145.85,5.5348823]
[1750849864926,10.64341373,145.89,145.85,5.5348823]
[1750849865826,10.64341373,145.89,145.84,5.5348823]
[1750849867807,10.64341373,145.89,145.85,5.5348823]
[1750849870727,5.5348823,145.89,145.85,5.5348823]
[1750849874528,10.63616222,145.89,145.85,5.5348823]
[1750849875127,5.5348823,145.87,145.83,94.72]
[1750849875444,5.5348823,145.84,145.83,6.02]
[1750849875608,24.18453116,145.84,145.83,6.02]
[1750849875930,24.18453116,145.84,145.78,6.02]
[1750849875931,29.71941346,145.84,145.78,6.02]
[1750849876120,5.5348823,145.8,145.78,6.02]
[1750849877316,5.5348823,145.79,145.78,6.02]
[1750849877619,5.5348823,145.8,145.78,6.02]
[1750849880637,5.5348823,145.79,145.78,6.02]
[1750849881017,18.64964886,145.8,145.78,6.02]
[1750849881213,5.5348823,145.79,145.78,6.02]
[1750849885149,24.18453116,145.79,145.78,6.02]
[1750849886545,5.5348823,145.79,145.78,6.02]
[1750849888841,24.18453116,145.8,145.78,6.02]
[1750849892147,26.0,145.81,145.78,11.5548823]
[1750849892348,26.0,145.81,145.78,6.02]
[1750849893246,31.5348823,145.81,145.78,6.02]
[1750849893440,31.5348823,145.8,145.78,6.02]
[1750849895242,24.18453116,145.79,145.78,6.02]
[1750849902487,31.5348823,145.8,145.78,6.02]
[1750849903252,1.92339281,145.85,145.78,6.02]
[1750849903458,5.5348823,145.81,145.78,6.02]
[1750849903951,18.64964886,145.83,145.78,6.02]
[1750849904179,5.5348823,145.82,145.78,6.02]
[1750849904356,7.9598,145.86,145.78,6.02]
[1750849904785,5.5348823,145.81,145.78,6.02]
[1750849906354,5.5348823,145.83,145.78,6.02]
[1750849906565,31.5348823,145.82,145.78,6.02]
[1750849906895,5.5348823,145.81,145.78,6.02]
[1750849908977,5.5348823,145.8,145.78,6.02]
[1750849911092,5.5348823,145.79,145.78,6.02]
[1750849918010,26.0,145.8,145.78,6.02]
[1750849918213,5.5348823,145.79,145.78,6.02]
[1750849920511,10.63899123,145.79,145.78,6.02]
[1750849920684,5.5348823,145.79,145.78,6.02]
[1750849920884,10.63899123,145.79,145.78,6.02]
[1750849921097,5.5348823,145.79,145.78,6.02]
[1750849921295,10.63899123,145.79,145.78,6.02]
[1750849921618,5.5348823,145.79,145.78,6.02]
[1750849924602,10.63899123,145.79,145.78,6.02]
[1750849924806,5.5348823,145.79,145.78,6.02]
[1750849925003,10.63899123,145.79,145.78,6.02]
[1750849925198,5.5348823,145.79,145.78,6.02]
[1750849925392,10.63899123,145.79,145.78,6.02]
[1750849925613,5.5348823,145.79,145.78,6.02]
[1750849926609,5.5348823,145.85,145.78,6.02]
[1750849926807,5.11825726,145.84,145.8,5.5348823]
[1750849927116,5.11825726,145.86,145.83,5.5348823]
[1750849927315,5.11825726,145.85,145.84,11.5348823]
[1750849927517,5.11825726,145.87,145.84,11.5348823]
[1750849927694,5.11825726,145.86,145.84,11.5348823]
[1750849927895,5.11825726,145.87,145.84,11.5348823]
[1750849928098,10.65313956,145.86,145.84,6.0]
[1750849928400,5.5348823,145.86,145.84,6.0]
[1750849928618,10.65313956,145.86,145.84,6.0]
[1750849928800,5.5348823,145.86,145.84,6.0]
[1750849928998,10.65313956,145.86,145.84,6.0]
[1750849929227,26.0,145.84,145.79,7.5907]
[1750849929409,49.76790612,145.83,145.75,7.5486]
[1750849929594,5.5348823,145.79,145.75,7.5486]
[1750849929798,5.11825726,145.82,145.75,7.5486]
[1750849929799,5.5348823,145.76,145.75,6.0]
[1750849931326,29.38764761,145.77,145.75,6.0]
[1750849931494,5.5348823,145.76,145.75,6.0]
[1750849935214,24.18453116,145.76,145.75,6.0]
[1750849935410,33.8066,145.73,145.63,45.9415]
[1750849935613,26.0,145.69,145.63,45.9415]
[1750849935926,26.0,145.68,145.63,44.4]
[1750849936107,5.5348823,145.65,145.63,44.4]
[1750849936428,5.5348823,145.64,145.62,6.34]
[1750849936812,18.64964886,145.67,145.62,6.34]
[1750849937004,5.5348823,145.65,145.62,6.34]
[1750849937203,5.5348823,145.64,145.62,6.34]
[1750849937429,26.0,145.66,145.62,6.34]
[1750849937735,31.5348823,145.66,145.62,6.34]
[1750849938026,5.5348823,145.68,145.63,5.5348823]
[1750849938404,5.5348823,145.69,145.64,5.5348823]
[1750849938607,5.5348823,145.69,145.65,5.5348823]
[1750849938810,5.5348823,145.69,145.62,6.34]
[1750849939010,5.5348823,145.69,145.65,5.5348823]
[1750849939421,26.0,145.69,145.66,5.5348823]
[1750849940030,26.0,145.69,145.67,5.5348823]
[1750849940257,26.0,145.7,145.68,11.8748823]
[1750849940443,5.5348823,145.73,145.69,11.8748823]
[1750849941906,9.68264761,145.77,145.69,11.8748823]
[1750849941907,5.5348823,145.75,145.71,5.5348823]
[1750849942105,5.5348823,145.75,145.69,6.34]
[1750849942307,26.0,145.73,145.71,5.5348823]
[1750849942910,26.0,145.74,145.72,5.5348823]
[1750849944014,26.0,145.73,145.72,5.5348823]
[1750849944749,26.0,145.74,145.72,5.5348823]
[1750849945043,26.0,145.74,145.73,5.5348823]
[1750849945254,5.5348823,145.76,145.69,6.34]
[1750849945444,5.5348823,145.76,145.71,5.5348823]
[1750849946537,5.5348823,145.76,145.69,6.34]
[1750849946728,5.5348823,145.76,145.71,5.5348823]
[1750849948247,5.5348823,145.76,145.72,5.5348823]
[1750849948830,31.5348823,145.77,145.72,5.5348823]
[1750849949647,18.64964886,145.77,145.73,5.5348823]
[1750849949855,26.0,145.76,145.73,5.5348823]
[1750849950349,5.5348823,145.76,145.72,5.5348823]
[1750849951038,26.0,145.76,145.72,5.5348823]
[1750849953450,31.5348823,145.76,145.72,5.5348823]
[1750849954859,31.5348823,145.76,145.69,95.04]
[1750849955061,31.5348823,145.76,145.72,5.5348823]
[1750849955442,5.5348823,145.74,145.69,11.8748823]
[1750849955750,5.5348823,145.75,145.7,5.5348823]
[1750849956849,5.5348823,145.74,145.7,5.5348823]
[1750849958837,5.5348823,145.75,145.7,5.5348823]
[1750849959837,5.5348823,145.74,145.7,5.5348823]
[1750849960454,26.0,145.75,145.7,5.5348823]
[1750849960666,5.5348823,145.74,145.7,5.5348823]
[1750849961364,5.5348823,145.74,145.69,6.34]
[1750849961655,5.5348823,145.74,145.7,5.5348823]
[1750849962260,5.5348823,145.73,145.69,11.8748823]
[1750849962467,26.0,145.76,145.69,6.34]
[1750849962636,5.5348823,145.73,145.69,11.8748823]
[1750849962835,5.5348823,145.74,145.7,5.5348823]
[1750849963963,26.0,145.76,145.69,6.34]
[1750849964162,26.0,145.76,145.69,11.8748823]
[1750849964460,5.5348823,145.74,145.7,5.5348823]
[1750849965155,5.5348823,145.75,145.7,5.5348823]
[1750849965362,31.5348823,145.75,145.7,5.5348823]
[1750849965938,5.5348823,145.74,145.7,5.5348823]
[1750849966145,5.5348823,145.74,145.69,11.8748823]
[1750849966343,5.5348823,145.74,145.7,5.5348823]
[1750849968469,5.5348823,145.74,145.69,6.34]
[1750849968666,5.5348823,145.74,145.7,5.5348823]
[1750849969868,31.5348823,145.75,145.7,5.5348823]
[1750849973566,5.5348823,145.74,145.69,6.34]
[1750849973769,5.5348823,145.74,145.69,11.8748823]
[1750849976454,5.5348823,145.73,145.69,6.34]
[1750849977160,5.5348823,145.74,145.69,11.8748823]
[1750849977362,5.5348823,145.74,145.7,5.5348823]
[1750849977554,5.5348823,145.74,145.69,6.34]
[1750849977751,5.5348823,145.74,145.7,5.5348823]
[1750849978784,5.5348823,145.74,145.69,11.8748823]
[1750849979080,5.5348823,145.74,145.69,6.34]
[1750849979471,5.5348823,145.74,145.69,11.8748823]
[1750849979863,5.5348823,145.74,145.69,6.34]
[1750849980174,5.5348823,145.74,145.69,11.8748823]
[1750849980970,5.5348823,145.74,145.69,6.34]
[1750849981185,5.5348823,145.72,145.69,6.34]
[1750849981555,31.07469874,145.75,145.69,6.34]
[1750849981556,26.0,145.7,145.69,6.34]
[1750849981754,26.0,145.7,145.63,6.5]
[1750849981755,18.64964886,145.69,145.63,6.5]
[1750849982055,5.5348823,145.66,145.63,6.5]
[1750849984354,23.7243476,145.69,145.63,6.5]
[1750849984357,5.5348823,145.64,145.63,6.5]
[1750849987979,26.0,145.65,145.63,6.5]
[1750849988162,12.0348823,145.68,145.63,6.5]
[1750849988163,6.5,145.68,145.63,12.0348823]
[1750849988363,5.5348823,145.68,145.64,5.5348823]
[1750849988675,31.5348823,145.68,145.64,5.5348823]
[1750849989853,5.5348823,145.69,145.65,5.5348823]
[1750849990286,5.5348823,145.69,145.63,8.1287]
[1750849990287,5.5348823,145.68,145.64,5.5348823]
[1750849991079,26.0,145.69,145.64,5.5348823]
[1750849991289,31.5348823,145.69,145.64,5.5348823]
[1750849991969,31.5348823,145.69,145.63,8.1287]
[1750849992169,5.5348823,145.68,145.63,13.6635823]
[1750849992584,5.5348823,145.68,145.63,8.1287]
[1750849992803,26.0,145.69,145.63,13.6635823]
[1750849993162,26.0,145.69,145.63,8.1287]
[1750849993363,5.5348823,145.68,145.63,13.6635823]
[1750849994669,5.5348823,145.67,145.63,13.6635823]
[1750849994981,5.5348823,145.68,145.63,8.1287]
[1750849995183,5.5348823,145.68,145.63,13.6635823]
[1750849998587,5.5348823,145.68,145.63,8.1287]
[1750849998780,5.5348823,145.67,145.63,13.6635823]
[1750850001788,5.5348823,145.64,145.63,6.5]
[1750850002978,26.0,145.66,145.63,6.5]
[1750850003490,5.5348823,145.65,145.63,6.5]
[1750850004290,5.5348823,145.64,145.63,6.5]
[1750850013171,28.694198,145.71,145.63,12.0348823]
[1750850013372,5.5348823,145.7,145.65,5.5348823]
[1750850013573,5.5348823,145.68,145.63,12.0348823]
[1750850013772,5.5348823,145.64,145.63,6.5]
[1750850015691,5.5348823,145.65,145.63,6.5]
[1750850019371,26.0,145.66,145.63,6.5]
[1750850019595,5.5348823,145.65,145.63,6.5]
[1750850021787,5.5348823,145.64,145.63,6.5]
[1750850023400,5.5348823,145.64,145.58,6.58]
[1750850023586,5.5348823,145.61,145.58,6.58]
[1750850024102,5.5348823,145.6,145.58,6.58]
[1750850024776,5.5348823,145.61,145.58,6.58]
[1750850025786,31.5348823,145.62,145.58,6.58]
[1750850026100,31.5348823,145.62,145.58,12.1148823]
[1750850026802,26.0,145.62,145.59,5.5348823]
[1750850026991,26.0,145.62,145.6,5.5348823]
[1750850027507,26.0,145.64,145.61,5.5348823]
[1750850027808,31.5348823,145.64,145.6,5.5348823]
[1750850029607,5.5348823,145.63,145.58,6.58]
[1750850029812,5.5348823,145.63,145.59,5.5348823]
[1750850030709,26.0,145.63,145.58,6.58]
[1750850030892,5.5348823,145.62,145.58,6.58]
[1750850031205,26.0,145.62,145.58,6.58]
[1750850031406,5.5348823,145.59,145.58,6.58]
[1750850032186,26.0,145.59,145.58,6.58]
[1750850032403,31.5348823,145.59,145.58,6.58]
[1750850032599,26.0,145.59,145.58,6.58]
[1750850034297,5.5348823,145.59,145.58,6.58]
[1750850034895,31.5348823,145.59,145.58,6.58]
[1750850036087,26.0,145.59,145.58,6.58]
[1750850036293,31.5348823,145.59,145.58,6.58]
[1750850036611,31.5348823,145.59,145.53,11.9748823]
[1750850036784,5.5348823,145.57,145.53,11.9748823]
[1750850037709,5.5348823,145.58,145.54,5.5348823]
[1750850039003,31.5348823,145.59,145.54,5.5348823]
[1750850039391,5.5348823,145.57,145.53,6.44]
[1750850040108,5.5348823,145.56,145.53,6.44]
[1750850040891,5.5348823,145.57,145.53,6.44]
[1750850041092,26.0,145.59,145.53,11.9748823]
[1750850041294,5.5348823,145.58,145.53,6.44]
[1750850041507,5.5348823,145.58,145.54,5.5348823]
[1750850043196,5.5348823,145.58,145.53,11.9748823]
[1750850043691,5.5348823,145.57,145.53,6.44]
[1750850045118,5.5348823,145.57,145.53,11.9748823]
[1750850045632,26.0,145.59,145.55,5.5348823]
[1750850045923,26.0,145.59,145.53,95.14]
[1750850046121,26.0,145.59,145.56,5.5348823]
[1750850046289,26.0,145.59,145.55,5.5348823]
[1750850046823,31.5348823,145.59,145.55,5.5348823]
[1750850047125,26.0,145.59,145.55,5.5348823]
[1750850047421,31.5348823,145.59,145.55,5.5348823]
[1750850047997,26.0,145.59,145.56,5.5348823]
[1750850048517,5.5348823,145.62,145.53,35.28]
[1750850048702,7.694,145.64,145.53,35.28]
[1750850048703,5.5348823,145.6,145.56,5.5348823]
[1750850048898,31.5348823,145.61,145.56,5.5348823]
[1750850049089,26.0,145.61,145.56,5.5348823]
[1750850049289,31.5348823,145.61,145.57,5.5348823]
[1750850049510,29.81796726,145.61,145.57,5.5348823]
[1750850050897,5.5348823,145.62,145.58,5.5348823]
[1750850051225,5.5348823,145.63,145.58,11.9748823]
[1750850051617,31.5348823,145.63,145.58,11.9748823]
[1750850052103,5.5348823,145.62,145.58,11.9748823]
[1750850052626,31.5348823,145.63,145.58,11.9748823]
[1750850053526,26.0,145.63,145.59,5.5348823]
[1750850053699,31.5348823,145.63,145.59,5.5348823]
[1750850054102,26.0,145.63,145.59,5.5348823]
[1750850054621,31.5348823,145.63,145.59,5.5348823]
[1750850055316,26.0,145.63,145.59,5.5348823]
[1750850055500,31.5348823,145.63,145.59,5.5348823]
[1750850056731,5.5348823,145.62,145.58,11.9748823]
[1750850057027,26.0,145.63,145.58,6.44]
[1750850057214,31.5348823,145.63,145.58,11.9748823]
[1750850057532,31.5348823,145.63,145.59,5.5348823]
[1750850057727,5.5348823,145.62,145.58,11.9748823]
[1750850058226,5.5348823,145.62,145.58,6.44]
[1750850058425,5.5348823,145.59,145.58,6.44]
[1750850064534,5.5348823,145.59,145.53,12.0148823]
[1750850064731,5.5348823,145.57,145.53,100.7148823]
[1750850065108,5.07374585,145.61,145.53,100.7148823]
[1750850065405,5.5348823,145.58,145.54,5.5348823]
[1750850065617,5.5348823,145.58,145.54,94.2348823]
[1750850067332,5.5348823,145.58,145.54,88.7]
[1750850067518,5.5348823,145.58,145.54,94.2348823]
[1750850068432,5.5348823,145.58,145.54,5.5348823]
[1750850069315,5.07374585,145.61,145.54,5.5348823]
[1750850069534,33.6934,145.62,145.53,6.48]
[1750850069708,26.0,145.58,145.53,12.0148823]
[1750850069912,5.5348823,145.57,145.53,12.0148823]
[1750850070525,31.5348823,145.58,145.53,12.0148823]
[1750850071941,5.5348823,145.6,145.56,5.5348823]
[1750850072830,31.5348823,145.61,145.56,5.5348823]
[1750850073039,31.5348823,145.61,145.57,5.5348823]
[1750850073842,26.0,145.61,145.57,5.5348823]
[1750850074022,31.5348823,145.61,145.57,5.5348823]
[1750850074427,31.5348823,145.61,145.56,5.5348823]
[1750850078729,31.5348823,145.61,145.57,5.5348823]
[1750850081642,26.0,145.61,145.57,12.0148823]
[1750850081850,26.0,145.61,145.58,5.5348823]
[1750850084851,31.5348823,145.61,145.57,12.0148823]
[1750850085044,5.5348823,145.6,145.57,6.48]
[1750850085362,5.5348823,145.59,145.57,6.48]
[1750850089230,5.5348823,145.58,145.57,6.48]
[1750850092358,5.5348823,145.58,145.52,13.4655823]
[1750850092540,5.5348823,145.55,145.52,6.36]
[1750850092741,5.5348823,145.54,145.52,6.36]
[1750850092950,26.0,145.55,145.52,6.36]
[1750850093152,5.5348823,145.55,145.52,6.36]
[1750850093957,5.5348823,145.54,145.52,6.36]
[1750850094445,5.5348823,145.55,145.52,6.36]
[1750850095030,26.0,145.56,145.52,6.36]
[1750850095235,5.5348823,145.55,145.52,6.36]
[1750850095931,31.5348823,145.56,145.52,6.36]
[1750850097167,26.0,145.56,145.52,6.36]
[1750850097365,31.5348823,145.56,145.52,6.36]
[1750850097668,26.0,145.56,145.53,5.5348823]
[1750850097968,18.64964886,145.63,145.55,5.5348823]
[1750850098169,5.5348823,145.6,145.56,5.5348823]
[1750850098341,5.5348823,145.61,145.56,5.5348823]
[1750850098546,5.5348823,145.61,145.57,5.5348823]
[1750850098742,5.09006672,145.63,145.54,18.64964886]
[1750850098942,5.5348823,145.61,145.57,5.5348823]
[1750850099362,5.5348823,145.61,145.54,18.64964886]
[1750850099363,5.5348823,145.61,145.56,5.5348823]
[1750850099752,5.5348823,145.6,145.55,5.5348823]
[1750850100068,5.5348823,145.57,145.53,7.1869823]
[1750850100262,5.5348823,145.56,145.53,1.6521]
[1750850101972,5.5348823,145.56,145.52,11.8948823]
[1750850102173,5.5348823,145.56,145.52,6.36]
[1750850102673,5.5348823,145.54,145.52,6.36]
[1750850103045,5.5348823,145.53,145.52,6.36]
[1750850103249,5.5348823,145.53,145.47,1.6132]
[1750850103445,5.5348823,145.48,145.45,6.36]
[1750850103645,31.5348823,145.52,145.45,6.36]
[1750850103646,5.5348823,145.49,145.45,11.8948823]
[1750850103848,26.0,145.53,145.46,5.5348823]
[1750850104071,5.5348823,145.5,145.46,5.5348823]
[1750850105670,5.5348823,145.5,145.45,11.8948823]
[1750850106266,5.5348823,145.49,145.45,6.36]
[1750850106856,5.5348823,145.49,145.45,11.8948823]
[1750850107561,6.36708643,145.57,145.45,11.8948823]
[1750850107562,26.0,145.51,145.48,5.5348823]
[1750850107876,5.5348823,145.52,145.48,5.5348823]
[1750850108254,31.5348823,145.53,145.49,5.5348823]
[1750850109070,31.5348823,145.53,145.45,95.06]
[1750850109272,26.0,145.53,145.49,5.5348823]
[1750850109471,31.5348823,145.53,145.49,5.5348823]
[1750850109972,5.5348823,145.53,145.49,5.5348823]
[1750850110172,31.5348823,145.53,145.49,5.5348823]
[1750850110949,5.5348823,145.55,145.5,5.5348823]
[1750850111368,5.5348823,145.54,145.5,5.5348823]
[1750850113350,26.0,145.56,145.49,95.8594823]
[1750850113351,5.5348823,145.53,145.49,95.8594823]
[1750850113755,31.5348823,145.54,145.5,5.5348823]
[1750850114655,26.0,145.54,145.51,6.36]
[1750850115481,5.5348823,145.56,145.52,5.5348823]
[1750850115652,18.64964886,145.61,145.52,5.5348823]
[1750850115853,18.64964886,145.61,145.53,5.5348823]
[1750850116060,5.5348823,145.57,145.53,5.5348823]
[1750850117169,5.5348823,145.56,145.52,5.5348823]
[1750850120774,5.5348823,145.55,145.51,95.06]
[1750850121659,5.5348823,145.55,145.51,100.5948823]
[1750850125590,5.5348823,145.55,145.51,11.8948823]
[1750850127488,5.5348823,145.56,145.51,11.8948823]
[1750850128463,5.5348823,145.55,145.51,11.8948823]
[1750850128872,5.5348823,145.56,145.52,5.5348823]
[1750850131787,5.5348823,145.56,145.51,100.5948823]
[1750850132998,5.5348823,145.56,145.52,5.5348823]
[1750850134066,5.5348823,145.58,145.53,5.5348823]
[1750850134296,5.5348823,145.58,145.54,5.5348823]
[1750850134694,5.5348823,145.59,145.54,5.5348823]
[1750850134877,5.5348823,145.59,145.55,5.5348823]
[1750850135085,10.61253038,145.61,145.56,5.5348823]
[1750850135389,5.5348823,145.61,145.57,6.3]
[1750850136292,26.0,145.6,145.58,5.5348823]
[1750850137593,31.5348823,145.62,145.58,5.5348823]
[1750850142198,26.0,145.62,145.58,5.5348823]
[1750850142398,31.5348823,145.62,145.58,5.5348823]
[1750850143805,26.0,145.62,145.59,5.5348823]
[1750850145806,26.0,145.62,145.58,5.5348823]
[1750850147304,31.5348823,145.62,145.58,5.5348823]
[1750850151289,5.5348823,145.6,145.57,95.0]
[1750850152397,5.5348823,145.61,145.57,95.0]
[1750850152606,5.5348823,145.61,145.57,100.5348823]
[1750850155204,5.5348823,145.61,145.57,11.8348823]
[1750850156112,26.0,145.62,145.57,11.8348823]
[1750850156315,5.5348823,145.61,145.57,11.8348823]
[1750850159201,26.0,145.62,145.57,11.8348823]
[1750850159414,5.5348823,145.61,145.57,11.8348823]
[1750850160816,5.5348823,145.59,145.57,6.3]
[1750850160995,5.5348823,145.58,145.57,6.3]
[1750850161209,5.5348823,145.58,145.53,88.7]
[1750850161505,5.5348823,145.55,145.52,6.22]
[1750850162012,5.5348823,145.53,145.52,6.22]
[1750850164506,26.0,145.55,145.52,6.22]
[1750850164811,31.5348823,145.55,145.52,6.22]
[1750850165013,5.5348823,145.54,145.52,6.22]
[1750850166914,5.5348823,145.53,145.47,6.22]
[1750850167120,5.5348823,145.49,145.47,6.22]
[1750850167406,5.5348823,145.5,145.47,6.22]
[1750850169305,31.5348823,145.51,145.47,6.22]
[1750850172529,5.5348823,145.49,145.47,6.22]
[1750850172737,5.5348823,145.48,145.47,6.22]
[1750850173827,26.0,145.49,145.47,6.22]
[1750850174136,31.5348823,145.49,145.47,6.22]
[1750850174440,5.5348823,145.48,145.47,6.22]
[1750850176008,31.5348823,145.49,145.47,6.22]
[1750850176550,5.5348823,145.48,145.42,56.2548823]
[1750850176721,5.5348823,145.46,145.42,56.2548823]
[1750850176928,5.5348823,145.46,145.42,50.72]
[1750850177123,5.5348823,145.46,145.42,56.2548823]
[1750850177332,5.5348823,145.46,145.42,50.72]
[1750850177530,32.0637,145.49,145.42,56.2548823]
[1750850177834,5.5348823,145.47,145.42,50.72]
[1750850178040,5.5348823,145.47,145.43,5.5348823]
[1750850178455,5.5348823,145.46,145.42,50.72]
[1750850178945,5.5348823,145.45,145.42,50.72]
[1750850179137,32.0637,145.49,145.42,6.22]
[1750850179138,5.5348823,145.44,145.42,6.22]
[1750850179443,5.5348823,145.43,145.42,6.22]
[1750850179815,26.0,145.45,145.42,6.22]
[1750850180214,5.5348823,145.43,145.42,6.22]
[1750850181023,31.5348823,145.46,145.42,6.22]
[1750850181235,31.5348823,145.48,145.43,5.5348823]
[1750850181417,31.5348823,145.47,145.43,5.5348823]
[1750850181819,26.0,145.47,145.42,6.22]
[1750850182119,3.42008353,145.49,145.42,6.22]
[1750850182322,5.5348823,145.45,145.42,6.22]
[1750850183249,32.31,145.47,145.42,6.22]
[1750850183750,5.5348823,145.44,145.42,6.22]
[1750850184650,5.5348823,145.43,145.42,6.22]
[1750850185847,5.5348823,145.44,145.42,6.22]
[1750850186041,32.31,145.47,145.42,6.22]
[1750850186042,26.0,145.47,145.42,6.22]
[1750850186250,5.5348823,145.45,145.42,6.22]
[1750850187034,26.0,145.47,145.42,6.22]
[1750850187236,31.5348823,145.47,145.43,5.5348823]
[1750850187447,5.5348823,145.46,145.42,11.7548823]
[1750850188631,31.5348823,145.47,145.43,5.5348823]
[1750850188836,26.0,145.47,145.43,5.5348823]
[1750850189245,18.64964886,145.53,145.46,5.5348823]
[1750850189552,31.5348823,145.5,145.45,7.1600823]
[1750850189739,5.5348823,145.5,145.45,7.1600823]
[1750850189948,5.5348823,145.5,145.46,5.5348823]
[1750850193357,5.5348823,145.49,145.45,7.1600823]
[1750850194755,26.0,145.51,145.46,5.5348823]
[1750850194756,5.5348823,145.5,145.46,5.5348823]
[1750850195487,26.0,145.51,145.46,5.5348823]
[1750850195632,5.5348823,145.5,145.46,5.5348823]
[1750850196154,5.5348823,145.5,145.45,1.6252]
[1750850196350,5.5348823,145.5,145.46,5.5348823]
[1750850196859,5.5348823,145.5,145.45,1.6252]
[1750850197156,5.5348823,145.5,145.46,5.5348823]
[1750850198035,26.0,145.51,145.45,1.6252]
[1750850198348,5.5348823,145.5,145.46,5.5348823]
[1750850199356,5.5348823,145.5,145.46,94.2348823]
[1750850200156,5.5348823,145.49,145.46,88.7]
[1750850202550,5.5348823,145.49,145.45,7.1600823]
[1750850203360,26.0,145.5,145.47,5.5348823]
[1750850203667,31.5348823,145.5,145.45,7.1600823]
[1750850203843,5.5348823,145.49,145.45,7.1600823]
[1750850204652,5.5348823,145.48,145.43,5.5348823]
[1750850206859,5.5348823,145.47,145.43,5.5348823]
[1750850207041,5.5348823,145.47,145.42,7.8612]
[1750850207366,5.5348823,145.47,145.43,5.5348823]
[1750850207663,5.5348823,145.47,145.42,7.8612]
[1750850207866,26.0,145.5,145.43,5.5348823]
[1750850208160,5.5348823,145.48,145.43,5.5348823]
[1750850208545,5.07825604,145.51,145.45,5.5348823]
[1750850208758,31.5348823,145.51,145.46,5.5348823]
[1750850210771,36.61313834,145.51,145.46,5.5348823]
[1750850210943,31.5348823,145.51,145.46,5.5348823]
[1750850211770,31.07825604,145.51,145.46,5.5348823]
[1750850212069,5.5348823,145.52,145.48,5.5348823]
[1750850212264,5.5348823,145.52,145.47,5.5348823]
[1750850213162,5.5348823,145.52,145.48,5.5348823]
[1750850213355,31.5348823,145.53,145.45,18.64964886]